fUST/lending_fUST_20240707
["ID","MTS","AMOUNT","RATE_DAILY","PERIOD"]
[331412754,1720356130289,154.69833824,0.00012,4]
[331412755,1720356131732,273.37336231,9.9e-05,2]
[331412768,1720356139645,273.37336231,9.9e-05,2]
[331412769,1720356147992,273.37336231,9.9e-05,2]
[331412781,1720356152307,157.45328101,9.999e-05,2]
[331412782,1720356156514,273.37336231,9.9e-05,2]
[331412785,1720356163598,1059.42819878,0.00012,2]
[331412786,1720356165342,273.37336231,9.9e-05,2]
[331412787,1720356168978,1542.74304063,0.00012,2]
[331412788,1720356173311,273.37336231,9.9e-05,2]
[331412789,1720356174385,2251.78550122,0.00012,2]
[331412790,1720356181771,273.37336231,9.9e-05,2]
[331412791,1720356190303,162.80961542,0.00012,4]
[331412792,1720356190344,273.37336231,9.9e-05,2]
[331412793,1720356191843,178.83169516,0.00012,2]
[331412794,1720356199662,273.37336231,9.9e-05,2]
[331412795,1720356208350,273.37336231,9.9e-05,2]
[331412796,1720356217785,273.37336231,9.9e-05,2]
[331412797,1720356224509,16244.05623456,0.00012,2]
[331412823,1720356417879,1490.97796954,0.00012,2]
[331412833,1720356565605,-940.77285821,0.00014794,2]
[331412834,1720356565655,-347.38140436,0.00014794,2]
[331412836,1720356565707,-211.84573743,0.00014794,2]
[331412838,1720356565746,-490.93235365,0.000151,2]
[331412871,1720356632869,-573.852573,0.00015184,2]
[331412872,1720356632878,-727.147427,0.00015184,2]
[331412873,1720356632890,-2272.852573,0.00015184,2]
[331412874,1720356632901,-461.7864594,0.000154,2]
[331412875,1720356632910,-300.0,0.00016154,2]
[331412876,1720356632920,-300.0,0.00016154,2]
[331412877,1720356632929,-157.37307726,0.00016155,2]
[331412935,1720356638938,-2110.88779579,0.00016155,2]
[331412937,1720356638952,-24900.0,0.00016163,2]
[331412938,1720356638963,-57229.3410026,0.00016254,2]
[331412939,1720356638973,-18086.99713971,0.00016255,2]
[331412941,1720356638983,-166.666666,0.00016438,2]
[331412943,1720356638994,-166.666666,0.00016823,2]
[331412944,1720356639004,-166.666666,0.00017208,2]
[331412945,1720356639014,-166.666666,0.00017592,2]
[331412946,1720356639025,-420.0,0.00017659,2]
[331412947,1720356639035,-166.666666,0.00017977,2]
[331412948,1720356639046,-166.666666,0.00018362,2]
[331412949,1720356639057,-191.03593632,0.00018798,2]
[331412950,1720356639068,-49654.5843265,0.00018889,2]
[331412951,1720356639079,-763.53767096,0.000189,2]
[331412952,1720356639089,-197.21976724,0.00019039,2]
[331412953,1720356639099,-571.96142409,0.00019039,3]
[331412954,1720356639108,-250.0,0.00019041,2]
[331412955,1720356639118,-158.958572,0.00019178,2]
[331412956,1720356639128,-195.0,0.00019304,2]
[331412957,1720356639138,-250.60024426,0.00019478,2]
[331412958,1720356639149,-49654.5843265,0.0001979,2]
[331412959,1720356639159,-52119.39254387,0.000198,2]
[331412960,1720356639170,-1926.27660558,0.000199,2]
[331412961,1720356639181,-579.51006506,0.0002,2]
[331412962,1720356639191,-151.21272606,0.0002,2]
[331412963,1720356639202,-750.0,0.00021096,2]
[331412964,1720356639212,-223.603113,0.00021096,2]
[331412965,1720356639223,-2268.26087301,0.00021426,2]
[331412966,1720356639233,-215.10199221,0.00022,2]
[331412967,1720356639243,-500.0,0.00022011,2]
[331412968,1720356639253,-650.58625997,0.00022011,2]
[331412969,1720356639263,-500.0,0.00022011,2]
[331412970,1720356639273,-155.50507154,0.00022012,2]
[331412971,1720356639283,-49654.5843265,0.00022012,3]
[331412972,1720356639293,-22155.72546566,0.00022022,2]
[331412973,1720356639362,-7844.27453434,0.00022022,2]
[331412974,1720356639372,-1018.60866954,0.0002217,2]
[331412975,1720356639383,-573.852573,0.00022776,2]
[331412976,1720356639392,-200.0,0.00023,2]
[331412977,1720356639402,-763.53767096,0.000239,2]
[331412978,1720356639413,-200.0,0.00024658,15]
[331412979,1720356639423,-3820.61480379,0.0002489,3]
[331412980,1720356639435,-26997.12344944,0.0002489,3]
[331412995,1720356641076,-68491.43039977,0.0002489,3]
[331412996,1720356641085,-1926.27660555,0.00024907,2]
[331412997,1720356641095,-250.8050753,0.00025,2]
[331412998,1720356641104,-242.94533201,0.00025,2]
[331412999,1720356641114,-2268.26087301,0.00026696,2]
[331413000,1720356641122,-750.0,0.00027195,2]
[331413001,1720356641132,-223.603113,0.00027195,2]
[331413002,1720356641141,-763.53767096,0.000289,2]
[331413003,1720356641151,-1926.27660555,0.00029914,2]
[331413004,1720356641160,-204.94548438,0.0003,3]
[331413005,1720356641170,-240.0,0.0003,2]
[331413006,1720356641179,-2268.26087301,0.00031967,2]
[331413007,1720356641188,-158.958572,0.00032877,2]
[331413008,1720356641197,-750.0,0.00033295,2]
[331413009,1720356641207,-223.603113,0.00033295,2]
[331413010,1720356641216,-620.0,0.00033568,2]
[331413011,1720356641226,-1501.24478952,0.00034458,2]
[331413012,1720356641235,-154.69833824,0.00034688,2]
[331413013,1720356641244,-1926.27660555,0.0003492,2]
[331413014,1720356641253,-435.0,0.00035259,2]
[331413015,1720356641263,-3057.23,0.00035616,3]
[331413016,1720356641271,-2547.69,0.00035616,3]
[331413017,1720356641281,-150.0,0.00035957,2]
[331413018,1720356641290,-257.69157416,0.0003624,2]
[331413019,1720356641299,-2511.64882434,0.00036429,4]
[331413020,1720356641309,-500.42247954,0.00036429,2]
[331413021,1720356641319,-983.75784699,0.00036429,2]
[331413022,1720356641328,-1154.43037999,0.00036429,22]
[331413023,1720356641338,-150.0,0.00036913,2]
[331413024,1720356641348,-1405.0,0.00036913,2]
[331413025,1720356641358,-2268.26087301,0.00037238,2]
[331413026,1720356641367,-750.0,0.00039394,2]
[331413027,1720356641377,-223.603113,0.00039394,2]
[331413028,1720356641386,-150.0,0.00039913,2]
[331413029,1720356641395,-1405.0,0.00039913,2]
[331413030,1720356641404,-1926.27660555,0.00039927,2]
[331413031,1720356641414,-49654.5843265,0.00039977,5]
[331413032,1720356641424,-8731.90044413,0.00039987,3]
[331413033,1720356641433,-151.0,0.00039987,14]
[331413034,1720356641442,-151.0,0.00039987,14]
[331413035,1720356641451,-151.0,0.00039987,14]
[331413036,1720356641461,-151.0,0.00039987,14]
[331413037,1720356641470,-151.0,0.00039987,14]
[331413038,1720356641480,-151.0,0.00039987,14]
[331413039,1720356641489,-151.0,0.00039987,14]
[331413040,1720356641499,-38532.73880915,0.0004,2]
[331413041,1720356641509,-5522.10200958,0.0004,7]
[331413042,1720356641518,-4834.06010409,0.0004,2]
[331413043,1720356641527,-151.24510086,0.00040383,4]
[331413044,1720356641537,-5412.64303582,0.00040599,20]
[331413045,1720356641547,-151.526875,0.0004099,14]
[331413046,1720356641558,-270.81688255,0.00040999,4]
[331413047,1720356641569,-2280.37780451,0.00041,2]
[331413048,1720356641578,-179.148658,0.00041096,2]
[331413049,1720356641588,-212.7603793,0.0004125,2]
[331413050,1720356641598,-155.2919559,0.0004125,2]
[331413051,1720356641608,-153.0,0.0004125,2]
[331413052,1720356641618,-155.977319,0.0004189,30]
[331413053,1720356641627,-154.98563256,0.00041971,30]
[331413054,1720356641636,-2000.0,0.00042054,4]
[331413055,1720356641646,-2000.0,0.00042063,4]
[331413056,1720356641655,-2000.0,0.00042072,4]
[331413057,1720356641665,-293.4755649,0.00042076,2]
[331413058,1720356641674,-293.4755649,0.00042076,2]
[331413059,1720356641683,-1945.43,0.00042465,120]
[331413060,1720356641693,-2268.26087301,0.00042509,28]
[331413061,1720356641703,-154.59445059,0.00042636,30]
[331413062,1720356641712,-154.59445059,0.00042674,30]
[331413063,1720356641722,-206.2377939,0.00042863,2]
[331413064,1720356641731,-153.0,0.00042863,2]
[331413065,1720356641740,-15010.89,0.0004289,120]
[331413066,1720356641752,-150.0,0.00042913,2]
[331413067,1720356641763,-1405.0,0.00042913,2]
[331413068,1720356641772,-154.98563256,0.00043082,30]
[331413069,1720356641781,-1945.43,0.0004315,120]
[331413070,1720356641791,-154.98563256,0.00043557,30]
[331413071,1720356641801,-154.98563256,0.00043576,30]
[331413072,1720356641810,-2000.0,0.00043578,2]
[331413073,1720356641820,-154.98563256,0.00043624,30]
[331413074,1720356641831,-180675.834988,0.00043678,2]
[331413170,1720356647244,-9887.13632824,0.00018303,2]
[331413195,1720357384778,202.00340084,9.999e-05,2]
[331413196,1720357395505,206.62459374,9.999e-05,2]
[331413226,1720357590661,7108.61509317,0.0001212,2]
[331413231,1720357741789,154.88383712,9.999e-05,2]
[331413236,1720357798174,-929.81744349,0.00014266,2]
[331413237,1720357798217,-929.81744349,0.00014266,2]
[331413238,1720357798292,-344.86337363,0.00014266,2]
[331413273,1720357832932,-795.50173939,0.00014266,2]
[331413274,1720357832943,-366.36382301,0.00014679,2]
[331413275,1720357832956,-3297.33833159,0.00014679,2]
[331413287,1720357838930,-662.22500522,0.00014679,2]
[331413288,1720357839370,-20574.07284018,0.00014679,2]
[331413289,1720357839380,-2595.91030865,0.00014998,2]
[331413364,1720357841529,-3892.18456615,0.00014998,2]
[331413365,1720357841539,-6981.98564229,0.00014998,2]
[331413366,1720357841548,-7647.23754769,0.00014998,2]
[331413367,1720357841558,-1634.75488436,0.00014999,2]
[331413368,1720357841568,-520.2822567,0.00015,2]
[331413369,1720357841577,-1000.0,0.00016,16]
[331413370,1720357841588,-1541.02128444,0.00016155,2]
[331413371,1720357841597,-37240.9382449,0.00016235,2]
[331413372,1720357841606,-37240.9382449,0.00016244,2]
[331413373,1720357841616,-37240.9382449,0.00016245,2]
[331413374,1720357841625,-57229.3410026,0.00016254,2]
[331413375,1720357841635,-42237.40544043,0.00016255,2]
[331413376,1720357841645,-166.666666,0.00016438,2]
[331413377,1720357841654,-166.666666,0.00016823,2]
[331413378,1720357841664,-166.666666,0.00017208,2]
[331413379,1720357841674,-166.666666,0.00017592,2]
[331413380,1720357841683,-166.666666,0.00017977,2]
[331413381,1720357841693,-155.49898325,0.00018303,2]
[331413382,1720357841703,-166.666666,0.00018362,2]
[331413383,1720357841714,-191.03593632,0.00018798,2]
[331413384,1720357841724,-254.51255699,0.000189,2]
[331413385,1720357841734,-1000.0,0.00019,19]
[331413386,1720357841744,-197.21976724,0.00019039,2]
[331413387,1720357841754,-250.0,0.00019041,2]
[331413388,1720357841764,-162.092506,0.00019178,2]
[331413389,1720357841774,-160.136145,0.00019178,2]
[331413390,1720357841784,-495.17587799,0.00019779,2]
[331413391,1720357841794,-37240.9382449,0.0001978,2]
[331413392,1720357841803,-37240.9382449,0.0001979,2]
[331413393,1720357841819,-52119.39254387,0.000198,2]
[331413394,1720357841837,-435.0,0.0002,2]
[331413395,1720357841848,-302.42545213,0.0002,2]
[331413396,1720357841858,-441.53318556,0.000202,2]
[331413397,1720357841869,-746.040467,0.00021096,2]
[331413398,1720357841879,-178.88249,0.00021096,2]
[331413399,1720357841889,-184.18054423,0.00022,22]
[331413481,1720358359464,11034.37113057,0.00014998,2]
[331413499,1720358639363,155.0,0.00014999,2]
[331413500,1720358640766,246.34721627,0.00014999,2]
[331413502,1720358642426,222.66171746,0.00014999,2]
[331413503,1720358655401,510.22037569,0.00014999,2]
[331413505,1720358661702,164.81209326,0.00014999,2]
[331413515,1720358769448,509.73809537,0.00014999,2]
[331413516,1720358769975,158.13258682,0.00014999,2]
[331413526,1720358820476,11034.37113057,0.00014998,2]
[331413531,1720358857507,600.1115365,0.00014976,2]
[331413546,1720358940281,-300.0,0.00015176,2]
[331413547,1720358940326,-300.0,0.00015176,2]
[331413548,1720358940368,-328.73644104,0.00015177,2]
[331413549,1720358940419,-373.36982956,0.00015177,2]
[331413550,1720358940466,-555.36661148,0.00015177,2]
[331413551,1720358940524,-531.53453748,0.00015177,2]
[331413552,1720358950543,644.7745564,0.00014999,2]
[331413554,1720358965498,-300.0,0.00015176,2]
[331413555,1720358965543,-676.51658943,0.00015177,2]
[331413556,1720358965593,-976.51658943,0.00015177,2]
[331413557,1720358965639,-925.07814083,0.00015177,2]
[331413563,1720358990177,-1034.07881582,0.00015177,2]
[331413564,1720358990273,-367.08453068,0.00015177,2]
[331413606,1720359032290,-300.0,0.00015176,2]
[331413608,1720359032300,-332.68231449,0.00015177,2]
[331413622,1720359032454,-2570.76347303,0.00015177,2]
[331413623,1720359032465,-5523.82152411,0.00015177,2]
[331413690,1720359041152,-11406.55687322,0.00015177,2]
[331413695,1720359041162,-3000.0,0.0001525,2]
[331413698,1720359041172,-292.1265816,0.0001525,2]
[331413703,1720359041182,-36941.4159404,0.00016245,2]
[331413707,1720359041192,-57229.3410026,0.00016254,2]
[331413710,1720359041201,-42237.40544043,0.00016255,2]
[331413712,1720359041211,-1232.81702756,0.00016338,2]
[331413715,1720359041220,-166.666666,0.00016438,2]
[331413717,1720359041229,-166.666666,0.00016823,2]
[331413720,1720359041239,-166.666666,0.00017208,2]
[331413722,1720359041248,-166.666666,0.00017592,2]
[331413724,1720359041258,-166.666666,0.00017977,2]
[331413726,1720359041268,-166.666666,0.00018362,2]
[331413727,1720359041277,-154.69833824,0.00018899,2]
[331413728,1720359041287,-191.03593632,0.00018899,2]
[331413729,1720359041296,-254.51255699,0.000189,2]
[331413730,1720359041306,-197.21976724,0.00019,2]
[331413731,1720359041316,-250.0,0.00019041,2]
[331413732,1720359041325,-191.03593632,0.00019165,2]
[331413733,1720359041334,-159.350527,0.00019178,2]
[331413734,1720359041344,-8731.0,0.00019564,2]
[331413735,1720359041354,-73882.8318808,0.0001979,2]
[331413736,1720359041364,-500.0,0.00019799,2]
[331413737,1720359041374,-312.52087799,0.00019799,2]
[331413738,1720359041383,-52119.39254387,0.000198,2]
[331413739,1720359041393,-435.0,0.0002,2]
[331413740,1720359041402,-170.78407428,0.0002,2]
[331413741,1720359041412,-580.061634,0.00021096,2]
[331413742,1720359041422,-344.861324,0.00021096,2]
[331413743,1720359041431,-1117.35505048,0.00021917,2]
[331413744,1720359041440,-428.07800494,0.00022,2]
[331413745,1720359041450,-225.62340528,0.00022,2]
[331413746,1720359041461,-763.48993106,0.00022,2]
[331413747,1720359041471,-4174.40467449,0.00022,2]
[331413748,1720359041480,-1000.0,0.00022,22]
[331413749,1720359041490,-30000.0,0.00022236,2]
[331413751,1720359041499,-879.66892954,0.00022289,2]
[331413752,1720359041508,-1232.81702755,0.00022503,2]
[331413754,1720359041522,-254.51255699,0.000239,2]
[331413756,1720359041531,-327.14866916,0.00025,2]
[331413758,1720359041541,-154.71377951,0.00025,2]
[331413759,1720359041551,-1000.0,0.00025,25]
[331413760,1720359041563,-580.061634,0.00027195,2]
[331413761,1720359041572,-344.861324,0.00027195,2]
[331413762,1720359041582,-150.0,0.00027266,2]
[331413763,1720359041593,-500.0,0.00027397,2]
[331413764,1720359041603,-500.0,0.00027397,2]
[331413765,1720359041613,-500.0,0.00027397,2]
[331413766,1720359041623,-500.0,0.00027397,2]
[331413767,1720359041633,-500.0,0.00027397,2]
[331413768,1720359041644,-500.0,0.00027397,2]
[331413769,1720359041654,-500.0,0.00027397,2]
[331413770,1720359041663,-500.0,0.00027397,2]
[331413771,1720359041673,-638.07905913,0.00027397,2]
[331413772,1720359041683,-500.0,0.00027397,2]
[331413773,1720359041692,-500.0,0.00027397,2]
[331413774,1720359041702,-69.58347205,0.00027397,2]
[331413775,1720359041715,-430.41652795,0.00027397,2]
[331413776,1720359041724,-500.0,0.00027397,2]
[331413777,1720359041735,-500.0,0.00027397,2]
[331413778,1720359041744,-500.0,0.00027397,2]
[331413779,1720359041754,-110.38571285,0.00027397,2]
[331413780,1720359042196,-389.61428715,0.00027397,2]
[331413781,1720359042206,-500.0,0.00027397,2]
[331413782,1720359042216,-500.0,0.00027397,2]
[331413783,1720359042226,-500.0,0.00027397,2]
[331413784,1720359042236,-500.0,0.00027397,2]
[331413785,1720359042245,-500.0,0.00027397,2]
[331413786,1720359042255,-500.0,0.00027397,2]
[331413787,1720359042265,-500.0,0.00027397,2]
[331413788,1720359042274,-500.0,0.00027397,2]
[331413789,1720359042284,-257.15,0.00027813,2]
[331413790,1720359042295,-1000.0,0.00028,28]
[331413791,1720359042305,-1232.81702755,0.00028667,2]
[331413792,1720359042315,-204.94548438,0.0003,3]
[331413793,1720359042325,-198.0,0.0003,2]
[331413794,1720359042336,-1000.0,0.00031,31]
[331413795,1720359042346,-159.350527,0.00032877,2]
[331413796,1720359042356,-198.0,0.00033,2]
[331413797,1720359042366,-580.061634,0.00033295,2]
[331413798,1720359042375,-344.861324,0.00033295,2]
[331413799,1720359042386,-620.0,0.00033569,2]
[331413800,1720359042395,-1000.0,0.00034,34]
[331413801,1720359042405,-1232.81702755,0.00034832,2]
[331413802,1720359042415,-198.0,0.0003526,2]
[331413803,1720359042424,-5790.02418569,0.00035606,4]
[331413804,1720359042437,-856.1152022,0.00035606,4]
[331413805,1720359042450,-398.28426912,0.00035606,4]
[331413903,1720359046801,-453.35,0.00022236,2]
[331413905,1720359046813,-22741.6,0.00022236,2]
[331413930,1720359247316,2358.0,0.00036395,30]
[331413938,1720359438012,5536.18755879,0.00015,2]
[331413944,1720359610228,9887.13632824,0.00014998,2]
[331413946,1720359685258,6981.98564229,0.00014998,2]
[331413949,1720359695951,2314.15003177,0.00014998,2]
[331413954,1720359721059,-3329.94204077,0.00014998,2]
[331413955,1720359723186,4711.13030053,0.00014999,2]
[331413966,1720359743605,9615.23092531,0.00014998,2]
[331413970,1720359753748,2188.50186195,0.0001,2]
[331413978,1720359769130,24900.0,0.00014822,2]
[331414013,1720359820269,3078.85157566,0.00014999,2]
[331414017,1720359826363,250.0,0.00014888,2]
[331414081,1720359863195,1926.34329578,0.00014999,2]
[331414091,1720359948599,-199.90733466,0.00014794,2]
[331414092,1720359948625,-1500.0,0.00014999,2]
[331414093,1720359950945,3000.0,0.00014672,2]
[331414095,1720359986749,1109.29268894,0.00014999,2]
[331414096,1720360023514,2749.72049419,0.00036397,30]
[331414107,1720360107002,-190.9565613,0.00015076,2]
[331414111,1720360107071,-292.1265815,0.00015678,2]
[331414112,1720360107110,-252.96557194,0.00016155,2]
[331414147,1720360232539,-2983.41458544,0.00016155,2]
[331414148,1720360232549,-81.93773763,0.00016254,2]
[331414149,1720360232561,-339.5000166,0.00016254,2]
[331414150,1720360232574,-19.52071859,0.00016254,2]
[331414151,1720360232584,-399.2243609,0.00016254,2]
[331414241,1720360234523,500.0,0.000149,2]
[331414242,1720360234937,500.0,0.000149,2]
[331414243,1720360235890,500.0,0.000149,2]
[331414244,1720360236264,500.0,0.000149,2]
[331414245,1720360236682,500.0,0.000149,2]
[331414246,1720360237080,500.0,0.000149,2]
[331414247,1720360237500,500.0,0.000149,2]
[331414248,1720360237860,500.0,0.000149,2]
[331414249,1720360238254,500.0,0.000149,2]
[331414250,1720360238687,500.0,0.000149,2]
[331414251,1720360239064,539.12264438,0.000149,2]
[331414260,1720360240492,-265.00443593,0.00016253,2]
[331414262,1720360240505,-234.99556407,0.00016253,2]
[331414264,1720360240515,-300.0,0.00016254,2]
[331414266,1720360240524,-300.0,0.00016254,2]
[331414268,1720360240534,-224.96342143,0.00016254,2]
[331414270,1720360240546,-366.99479238,0.00016254,2]
[331414274,1720360240806,-3131.62413688,0.00016254,2]
[331414276,1720360240819,-20951.56690752,0.00016254,2]
[331414279,1720360240831,-552.34766548,0.00016254,2]
[331414299,1720360241081,-32001.84407891,0.00016254,2]
[331414301,1720360241091,-34938.5563685,0.00016255,2]
[331414303,1720360241100,-42237.40544043,0.00016255,2]
[331414305,1720360241116,-166.666666,0.00016438,2]
[331414307,1720360241131,-166.666666,0.00016823,2]
[331414309,1720360241140,-166.666666,0.00017208,2]
[331414311,1720360241150,-166.666666,0.00017592,2]
[331414312,1720360241159,-166.666666,0.00017977,2]
[331414314,1720360241174,-166.666666,0.00018362,2]
[331414315,1720360241183,-154.69833824,0.00018798,2]
[331414316,1720360241193,-254.51255699,0.000189,2]
[331414317,1720360241203,-250.0,0.00019041,2]
[331414318,1720360241212,-159.596033,0.00019178,2]
[331414319,1720360241223,-162.092506,0.00019583,2]
[331414320,1720360241232,-40089.1686359,0.00020003,2]
[331414321,1720360241241,-435.0,0.00020545,2]
[331414322,1720360241251,-154.9967445,0.00021095,2]
[331414323,1720360241260,-585.544684,0.00021096,2]
[331414324,1720360241271,-293.132125,0.00021096,2]
[331414325,1720360241280,-2983.41458543,0.00021426,2]
[331414326,1720360241290,-2168.12229694,0.00021817,2]
[331414327,1720360241301,-1117.35505048,0.00021917,2]
[331414328,1720360241310,-879.66892954,0.00022289,2]
[331414329,1720360241320,-30000.0,0.00022397,2]
[331414330,1720360241330,-40089.1686359,0.00022408,3]
[331414331,1720360241340,-254.51255699,0.000239,2]
[331414332,1720360241349,-1000.0,0.00025,25]
[331414333,1720360241359,-154.69833824,0.00025125,2]
[331414334,1720360241368,-500.0,0.00025479,2]
[331414335,1720360241377,-500.0,0.00025479,2]
[331414336,1720360241387,-524.06875151,0.00025479,2]
[331414337,1720360241397,-500.0,0.00025479,2]
[331414338,1720360241406,-500.0,0.00025479,2]
[331414339,1720360241417,-500.0,0.00025479,2]
[331414340,1720360241426,-468.78479591,0.00025479,2]
[331414341,1720360241435,-290.08052572,0.00025479,2]
[331414342,1720360241445,-500.0,0.00025479,2]
[331414343,1720360241454,-500.0,0.00025479,2]
[331414344,1720360241464,-500.0,0.00025479,2]
[331414345,1720360241473,-158.80505934,0.00025479,2]
[331414346,1720360241483,-500.0,0.00025479,2]
[331414347,1720360241493,-500.0,0.00025479,2]
[331414348,1720360241503,-500.0,0.00025479,2]
[331414349,1720360241512,-500.0,0.00025479,2]
[331414350,1720360241521,-500.0,0.00025479,2]
[331414351,1720360241531,-500.0,0.00025479,2]
[331414352,1720360241540,-500.0,0.00025479,2]
[331414353,1720360241549,-500.0,0.00025479,2]
[331414354,1720360241558,-500.0,0.00025479,2]
[331414355,1720360241567,-500.0,0.00025479,2]
[331414356,1720360241577,-500.0,0.00025479,2]
[331414357,1720360241586,-500.0,0.00025479,2]
[331414358,1720360241595,-500.0,0.00025479,2]
[331414359,1720360241604,-500.0,0.00025479,2]
[331414360,1720360241614,-500.0,0.00025479,2]
[331414361,1720360241623,-500.0,0.00025479,2]
[331414362,1720360241632,-529.88087029,0.00025479,2]
[331414363,1720360241641,-500.0,0.00025479,2]
[331414364,1720360241651,-500.0,0.00025479,2]
[331414365,1720360241662,-500.0,0.00025479,2]
[331414366,1720360241671,-500.0,0.00025479,2]
[331414367,1720360241681,-500.0,0.00025479,2]
[331414368,1720360241691,-500.0,0.00025479,2]
[331414369,1720360241700,-500.0,0.00025479,2]
[331414370,1720360241710,-500.0,0.00025479,2]
[331414371,1720360241720,-39179.15847806,0.0002548,3]
[331414384,1720360245534,-910.01015784,0.0002548,3]
[331414385,1720360245544,-3546.2619147,0.00025481,3]
[331414451,1720360246769,-1187.82,0.00025481,3]
[331414478,1720361112728,9615.23092531,0.00014998,2]
[331414486,1720361232240,6981.98564229,0.00014998,2]
[331414488,1720361253635,10179.46989365,0.00014998,2]
[331414489,1720361259423,521.45082604,0.00014999,7]
[331414490,1720361275563,4932.15189559,0.00014998,2]
[331414492,1720361326821,4711.13030053,0.00014999,2]
[331414494,1720361387434,521.45082604,0.00014999,7]
[331414495,1720361407201,500.0,0.00014999,2]
[331414500,1720361432677,-920.54070808,0.00015618,2]
[331414543,1720361441320,-1399.72950822,0.00015618,2]
[331414545,1720361441330,-2754.59086782,0.00016154,2]
[331414546,1720361441340,-2168.12229694,0.00016155,2]
[331414548,1720361441349,-300.0,0.00016244,2]
[331414550,1720361441359,-41654.0348293,0.00016245,2]
[331414552,1720361441369,-57229.3410026,0.00016254,2]
[331414553,1720361441378,-32109.95477984,0.00016255,2]
[331414555,1720361441387,-42237.40544043,0.00016255,2]
[331414557,1720361441396,-41654.0348293,0.00017719,2]
[331414559,1720361441405,-24900.0,0.00017729,2]
[331414560,1720361441414,-521.45082604,0.0001818,7]
[331414562,1720361441423,-2118.54298063,0.00018899,2]
[331414564,1720361441433,-254.51255699,0.000189,2]
[331414566,1720361441442,-2168.1222969,0.00018941,2]
[331414568,1720361441452,-250.0,0.00019041,2]
[331414569,1720361441462,-3138.06906429,0.00019164,2]
[331414571,1720361441471,-2031.79005528,0.00019165,2]
[331414573,1720361441481,-2126.66148443,0.00019165,2]
[331414575,1720361441492,-161.780447,0.00019178,2]
[331414577,1720361441501,-750.0,0.00021096,2]
[331414578,1720361441515,-174.922958,0.00021096,2]
[331414580,1720361441526,-166.666666,0.00021355,2]
[331414582,1720361441536,-2754.59086777,0.00021425,2]
[331414584,1720361441545,-2168.1222969,0.00021726,2]
[331414585,1720361441555,-1117.35505048,0.00021917,2]
[331414588,1720361441565,-166.666666,0.00021937,2]
[331414591,1720361441574,-225.1920807,0.000221,2]
[331414593,1720361441584,-158.80505934,0.00022235,2]
[331414594,1720361441593,-500.0,0.00022235,2]
[331414595,1720361441603,-524.06875151,0.00022235,2]
[331414596,1720361441612,-500.0,0.00022235,2]
[331414597,1720361441622,-500.0,0.00022235,2]
[331414599,1720361441633,-500.0,0.00022235,2]
[331414600,1720361441643,-500.0,0.00022235,2]
[331414601,1720361441653,-290.08052572,0.00022235,2]
[331414603,1720361441664,-500.0,0.00022235,2]
[331414604,1720361441674,-500.0,0.00022235,2]
[331414606,1720361441683,-500.0,0.00022235,2]
[331414607,1720361441694,-500.0,0.00022235,2]
[331414609,1720361441703,-500.0,0.00022235,2]
[331414610,1720361441713,-468.78479591,0.00022235,2]
[331414612,1720361441723,-500.0,0.00022235,2]
[331414613,1720361441732,-500.0,0.00022235,2]
[331414615,1720361441741,-500.0,0.00022235,2]
[331414616,1720361441751,-500.0,0.00022235,2]
[331414618,1720361441763,-500.0,0.00022235,2]
[331414620,1720361441772,-529.88087029,0.00022235,2]
[331414621,1720361441782,-500.0,0.00022235,2]
[331414622,1720361441791,-500.0,0.00022235,2]
[331414623,1720361441801,-500.0,0.00022235,2]
[331414624,1720361441811,-500.0,0.00022235,2]
[331414625,1720361441821,-500.0,0.00022235,2]
[331414626,1720361441831,-500.0,0.00022235,2]
[331414627,1720361441840,-500.0,0.00022235,2]
[331414628,1720361441849,-500.0,0.00022235,2]